fUSD/lending_fUSD_20250422
["ID","MTS","AMOUNT","RATE_DAILY","PERIOD"]
[358598389,1745298669542,-211.19788319,0.00056093,120]
[358598390,1745298669552,-2280.17024533,0.00056107,26]
[358598391,1745298669561,-2700.0,0.00056124,120]
[358598392,1745298669573,-500.0,0.00056164,120]
[358598393,1745298669583,-150.0,0.00056164,2]
[358598394,1745298669592,-150.0,0.00056164,2]
[358598395,1745298669602,-150.0,0.00056164,2]
[358598396,1745298669612,-248.84812667,0.00056165,2]
[358598397,1745298669622,-150.0,0.00056254,120]
[358598398,1745298669631,-500.0,0.00056355,120]
[358598399,1745298669641,-550.79084561,0.00056355,120]
[358598400,1745298669650,-1100.0,0.00056392,120]
[358598401,1745298669659,-90304.178751,0.00056399,2]
[358598402,1745298669669,-11039.5824692,0.00056399,2]
[358598403,1745298669678,-5651.7544763,0.00056399,2]
[358598404,1745298669687,-221.71995723,0.00056438,58]
[358598405,1745298669698,-605708.80874483,0.00056438,2]
[358598406,1745298669707,-2357.8087338,0.00056438,120]
[358598407,1745298669718,-1123.355858,0.00056438,120]
[358598408,1745298669727,-486.829956,0.00056438,120]
[358598409,1745298669736,-403.79427246,0.00056438,120]
[358598410,1745298669745,-368.38808196,0.00056438,120]
[358598411,1745298669754,-574.29201837,0.00056438,120]
[358598412,1745298669763,-500.0,0.00056438,120]
[358598413,1745298669772,-500.0,0.00056438,120]
[358598414,1745298669781,-500.0,0.00056438,120]
[358598415,1745298669790,-500.0,0.00056438,60]
[358598416,1745298669799,-500.0,0.00056438,120]
[358598417,1745298669808,-500.0,0.00056438,120]
[358598418,1745298669818,-600.0,0.00056438,120]
[358598419,1745298669829,-500.0,0.00056438,120]
[358598420,1745298669840,-500.0,0.00056438,120]
[358598421,1745298669849,-240.12892522,0.00056438,120]
[358598422,1745298669858,-500.0,0.00056438,120]
[358598423,1745298669867,-1000.0,0.00056438,120]
[358598424,1745298669876,-500.0,0.00056438,120]
[358598425,1745298669886,-500.0,0.00056438,120]
[358598426,1745298669895,-500.0,0.00056438,120]
[358598427,1745298669904,-458.48141344,0.00056438,120]
[358598428,1745298669913,-500.0,0.00056438,120]
[358598429,1745298669922,-500.0,0.00056438,120]
[358598430,1745298669932,-367.726189,0.00056438,120]
[358598431,1745298669941,-243.85682697,0.00056438,120]
[358598432,1745298669950,-500.0,0.00056438,120]
[358598433,1745298669960,-740.11,0.00056438,120]
[358598434,1745298669969,-500.0,0.00056438,120]
[358598435,1745298669978,-500.0,0.00056438,120]
[358598436,1745298669988,-500.0,0.00056438,120]
[358598437,1745298669997,-500.0,0.00056438,120]
[358598438,1745298670006,-500.0,0.00056438,120]
[358598439,1745298670016,-500.0,0.00056438,120]
[358598440,1745298670025,-500.0,0.00056438,120]
[358598441,1745298670035,-500.0,0.00056438,120]
[358598442,1745298670043,-500.0,0.00056438,120]
[358598443,1745298670053,-500.0,0.00056438,120]
[358598444,1745298670064,-500.0,0.00056438,120]
[358598445,1745298670078,-500.0,0.00056438,120]
[358598446,1745298670087,-500.0,0.00056438,120]
[358598447,1745298670097,-500.0,0.00056438,120]
[358598448,1745298670107,-673.62,0.00056438,120]
[358598449,1745298670117,-552.18090011,0.00056438,120]
[358598450,1745298670126,-574.32,0.00056438,120]
[358598451,1745298670135,-500.0,0.00056438,120]
[358598452,1745298670145,-510.75571469,0.00056438,120]
[358598453,1745298670154,-500.0,0.00056438,120]
[358598454,1745298670164,-500.0,0.00056438,120]
[358598455,1745298670174,-500.0,0.00056438,120]
[358598456,1745298670183,-500.0,0.00056438,120]
[358598457,1745298670193,-500.0,0.00056438,120]
[358598458,1745298670202,-351.56249944,0.00056438,120]
[358598459,1745298670211,-500.0,0.00056438,120]
[358598460,1745298670220,-500.0,0.00056438,120]
[358598461,1745298670229,-500.0,0.00056438,120]
[358598462,1745298670239,-500.0,0.00056438,120]
[358598463,1745298670249,-500.0,0.00056438,120]
[358598464,1745298670258,-500.0,0.00056438,120]
[358598465,1745298670267,-375.15608042,0.00056438,120]
[358598466,1745298670277,-500.0,0.00056438,120]
[358598467,1745298670286,-500.0,0.00056438,30]
[358598468,1745298670295,-500.0,0.00056438,120]
[358598469,1745298670305,-500.0,0.00056438,120]
[358598470,1745298670314,-500.0,0.00056438,120]
[358598471,1745298670324,-500.0,0.00056438,120]
[358598472,1745298670334,-500.0,0.00056438,120]
[358598473,1745298670343,-500.0,0.00056438,120]
[358598474,1745298670353,-1004.96,0.00056438,120]
[358598475,1745298670362,-500.0,0.00056438,120]
[358598476,1745298670371,-500.0,0.00056438,120]
[358598477,1745298670380,-500.0,0.00056438,120]
[358598478,1745298670389,-269.16184678,0.00056438,120]
[358598479,1745298670399,-500.0,0.00056438,120]
[358598480,1745298670409,-500.0,0.00056438,120]
[358598481,1745298670418,-500.0,0.00056438,120]
[358598482,1745298670427,-690.67,0.00056438,120]
[358598483,1745298670436,-500.0,0.00056438,120]
[358598484,1745298670446,-500.0,0.00056438,120]
[358598485,1745298670456,-500.0,0.00056438,120]
[358598486,1745298670465,-560.08,0.00056438,120]
[358598487,1745298670475,-500.0,0.00056438,120]
[358598488,1745298670484,-500.0,0.00056438,120]
[358598489,1745298670493,-500.0,0.00056438,120]
[358598490,1745298670502,-500.0,0.00056438,120]
[358598491,1745298670511,-500.0,0.00056438,120]
[358598492,1745298670520,-500.0,0.00056438,120]
[358598493,1745298670529,-500.0,0.00056438,120]
[358598494,1745298670539,-500.0,0.00056438,120]
[358598495,1745298670549,-500.0,0.00056438,120]
[358598496,1745298670558,-500.0,0.00056438,120]
[358598497,1745298670567,-500.0,0.00056438,120]
[358598498,1745298670575,-500.0,0.00056438,120]
[358598499,1745298670584,-500.0,0.00056438,120]
[358598500,1745298670593,-500.0,0.00056438,120]
[358598501,1745298670602,-500.0,0.00056438,120]
[358598502,1745298670612,-500.0,0.00056438,120]
[358598503,1745298670620,-500.0,0.00056438,120]
[358598504,1745298670629,-500.0,0.00056438,120]
[358598505,1745298670638,-509.45,0.00056438,120]
[358598506,1745298670647,-500.0,0.00056438,120]
[358598507,1745298670657,-500.0,0.00056438,120]
[358598508,1745298670666,-500.0,0.00056438,120]
[358598509,1745298670675,-500.0,0.00056438,120]
[358598510,1745298670684,-500.0,0.00056438,120]
[358598511,1745298670695,-515.19,0.00056438,120]
[358598512,1745298670704,-500.0,0.00056438,120]
[358598513,1745298670712,-500.0,0.00056438,120]
[358598514,1745298670722,-500.0,0.00056438,120]
[358598515,1745298670731,-500.0,0.00056438,120]
[358598516,1745298670740,-500.0,0.00056438,120]
[358598517,1745298670750,-500.0,0.00056438,120]
[358598518,1745298670758,-500.0,0.00056438,120]
[358598519,1745298670767,-500.0,0.00056438,120]
[358598520,1745298670776,-151.0,0.00056438,120]
[358598521,1745298670785,-500.0,0.00056438,120]
[358598522,1745298670795,-500.0,0.00056438,120]
[358598523,1745298670804,-500.0,0.00056438,120]
[358598524,1745298670813,-504.71701737,0.00056438,10]
[358598525,1745298670823,-500.0,0.00056438,120]
[358598526,1745298670833,-500.0,0.00056438,120]
[358598527,1745298670843,-500.0,0.00056438,120]
[358598528,1745298670852,-151.0,0.00056438,120]
[358598529,1745298670862,-500.0,0.00056438,120]
[358598530,1745298670871,-151.0,0.00056438,120]
[358598531,1745298670880,-1105.87,0.00056438,120]
[358598532,1745298670889,-151.0,0.00056438,120]
[358598533,1745298670898,-500.0,0.00056438,120]
[358598534,1745298670908,-500.0,0.00056438,120]
[358598535,1745298670917,-429.51850284,0.00056438,120]
[358598536,1745298670927,-500.0,0.00056438,120]
[358598537,1745298670936,-500.0,0.00056438,2]
[358598538,1745298670946,-500.0,0.00056438,120]
[358598539,1745298670955,-500.0,0.00056438,120]
[358598540,1745298670966,-500.0,0.00056438,120]
[358598541,1745298670975,-505.74,0.00056438,120]
[358598542,1745298670984,-500.0,0.00056438,120]
[358598543,1745298670993,-645.16599033,0.00056438,120]
[358598544,1745298671003,-500.0,0.00056438,120]
[358598545,1745298671013,-500.0,0.00056438,120]
[358598546,1745298671022,-500.0,0.00056438,120]
[358598547,1745298671031,-500.0,0.00056438,120]
[358598548,1745298671041,-500.0,0.00056438,120]
[358598549,1745298671050,-500.0,0.00056438,120]
[358598550,1745298671059,-500.0,0.00056438,120]
[358598551,1745298671072,-500.0,0.00056438,120]
[358598552,1745298671081,-500.0,0.00056438,120]
[358598553,1745298671091,-192.1006508,0.00056438,120]
[358598554,1745298671100,-500.0,0.00056438,120]
[358598555,1745298671110,-1000.0,0.00056438,120]
[358598556,1745298671120,-500.0,0.00056438,120]
[358598557,1745298671129,-500.0,0.00056438,120]
[358598558,1745298671139,-298.18503687,0.00056438,120]
[358598559,1745298671149,-500.0,0.00056438,120]
[358598560,1745298671159,-500.0,0.00056438,120]
[358598561,1745298671168,-1000.0,0.00056438,35]
[358598562,1745298671310,-500.0,0.00056438,120]
[358598563,1745298671322,-500.0,0.00056438,120]
[358598564,1745298671332,-500.0,0.00056438,120]
[358598565,1745298671343,-500.0,0.00056438,120]
[358598566,1745298671353,-500.0,0.00056438,120]
[358598567,1745298671363,-607.10618503,0.00056438,120]
[358598568,1745298671372,-500.0,0.00056438,120]
[358598569,1745298671383,-500.0,0.00056438,120]
[358598570,1745298671393,-165.34955889,0.00056438,120]
[358598571,1745298671403,-433.61617996,0.00056438,120]
[358598572,1745298671413,-537.7742724,0.00056438,120]
[358598573,1745298671422,-500.0,0.00056438,120]
[358598574,1745298671432,-500.0,0.00056438,120]
[358598575,1745298671442,-500.0,0.00056438,120]
[358598576,1745298671451,-500.0,0.00056438,120]
[358598577,1745298671460,-500.0,0.00056438,120]
[358598578,1745298671470,-156.2650386,0.00056438,120]
[358598579,1745298671480,-1331.73,0.00056438,120]
[358598580,1745298671489,-608.02,0.00056438,120]
[358598581,1745298671499,-89923.15,0.00056438,7]
[358598582,1745298671508,-7874.31,0.00056438,120]
[358598583,1745298671518,-500.0,0.00056438,120]
[358598584,1745298671527,-500.0,0.00056438,120]
[358598585,1745298671537,-500.0,0.00056438,118]
[358598586,1745298671547,-500.0,0.00056438,12]
[358598587,1745298671557,-500.55,0.00056438,120]
[358598588,1745298671566,-500.0,0.00056438,120]
[358598589,1745298671577,-500.0,0.00056438,120]
[358598590,1745298671587,-500.0,0.00056438,120]
[358598591,1745298671596,-500.0,0.00056438,120]
[358598592,1745298671606,-500.0,0.00056438,120]
[358598593,1745298671616,-2542.58,0.00056438,120]
[358598594,1745298671626,-151.0,0.00056438,120]
[358598595,1745298671635,-705.34,0.00056438,120]
[358598596,1745298671645,-585.71,0.00056438,120]
[358598597,1745298671655,-500.0,0.00056438,120]
[358598598,1745298671665,-500.0,0.00056438,120]
[358598599,1745298671674,-500.0,0.00056438,120]
[358598600,1745298671684,-500.0,0.00056438,120]
[358598601,1745298671694,-508.22,0.00056438,120]
[358598602,1745298671703,-500.0,0.00056438,120]
[358598603,1745298671713,-695.38,0.00056438,120]
[358598604,1745298671723,-434.80125539,0.00056438,120]
[358598605,1745298671733,-500.0,0.00056438,120]
[358598606,1745298671743,-528.15,0.00056438,120]
[358598607,1745298671753,-500.0,0.00056438,120]
[358598608,1745298671763,-500.0,0.00056438,120]
[358598609,1745298671773,-500.0,0.00056438,120]
[358598610,1745298671783,-809.17,0.00056438,120]
[358598611,1745298671792,-500.0,0.00056438,120]
[358598612,1745298671802,-756.42,0.00056438,120]
[358598613,1745298671812,-226.29060407,0.00056438,120]
[358598614,1745298671821,-500.0,0.00056438,120]
[358598615,1745298671831,-500.0,0.00056438,120]
[358598616,1745298671840,-819.39,0.00056438,120]
[358598617,1745298671850,-500.0,0.00056438,120]
[358598618,1745298671859,-500.0,0.00056438,120]
[358598619,1745298671869,-500.0,0.00056438,120]
[358598620,1745298671879,-500.0,0.00056438,120]
[358598621,1745298671888,-500.0,0.00056438,120]
[358598622,1745298671898,-500.0,0.00056438,120]
[358598623,1745298671907,-500.0,0.00056438,120]
[358598624,1745298671917,-501.39,0.00056438,120]
[358598625,1745298671927,-505.46,0.00056438,120]
[358598626,1745298671937,-500.0,0.00056438,120]
[358598627,1745298671946,-500.0,0.00056438,120]
[358598628,1745298671956,-500.0,0.00056438,120]
[358598629,1745298671966,-1243.56,0.00056438,120]
[358598630,1745298671975,-500.0,0.00056438,120]
[358598631,1745298671985,-582.2,0.00056438,120]
[358598632,1745298671995,-162.61914575,0.00056438,120]
[358598633,1745298672004,-500.0,0.00056438,120]
[358598634,1745298672014,-500.0,0.00056438,120]
[358598635,1745298672023,-500.0,0.00056438,120]
[358598636,1745298672032,-500.0,0.00056438,120]
[358598637,1745298672043,-500.0,0.00056438,120]
[358598638,1745298672052,-558.46,0.00056438,120]
[358598639,1745298672063,-757.59,0.00056438,120]
[358598640,1745298672075,-500.0,0.00056438,120]
[358598641,1745298672085,-500.0,0.00056438,120]
[358598642,1745298672095,-500.0,0.00056438,120]
[358598643,1745298672104,-1409.19,0.00056438,120]
[358598644,1745298672114,-500.0,0.00056438,120]
[358598645,1745298672124,-500.0,0.00056438,120]
[358598646,1745298672134,-500.0,0.00056438,120]
[358598647,1745298672146,-1342.58,0.00056438,120]
[358598648,1745298672156,-500.0,0.00056438,120]
[358598649,1745298672166,-541.16,0.00056438,120]
[358598650,1745298672176,-500.0,0.00056438,120]
[358598651,1745298672185,-500.0,0.00056438,120]
[358598652,1745298672195,-500.0,0.00056438,120]
[358598653,1745298672205,-500.0,0.00056438,120]
[358598654,1745298672214,-572.69573641,0.00056438,120]
[358598655,1745298672223,-500.0,0.00056438,120]
[358598656,1745298672234,-643.38,0.00056438,120]
[358598657,1745298672243,-500.0,0.00056438,120]
[358598658,1745298672253,-500.0,0.00056438,60]
[358598659,1745298672262,-691.21,0.00056438,120]
[358598660,1745298672271,-2959.67,0.00056438,2]
[358598661,1745298672282,-1743.81,0.00056438,120]
[358598662,1745298672291,-500.0,0.00056438,120]
[358598663,1745298672300,-673.23,0.00056438,120]
[358598664,1745298672310,-500.0,0.00056438,8]
[358598665,1745298672319,-611.28,0.00056438,120]
[358598666,1745298672328,-500.0,0.00056438,120]
[358598667,1745298672338,-999.0,0.00056438,120]
[358598668,1745298672347,-500.0,0.00056438,120]
[358598669,1745298672356,-553.79,0.00056438,120]
[358598670,1745298672366,-500.0,0.00056438,120]
[358598671,1745298672375,-500.0,0.00056438,120]
[358598672,1745298672385,-500.0,0.00056438,120]
[358598673,1745298672394,-500.0,0.00056438,120]
[358598674,1745298672403,-576.31076124,0.00056438,120]
[358598675,1745298672413,-500.0,0.00056438,120]
[358598676,1745298672423,-500.0,0.00056438,120]
[358598677,1745298672432,-776.47,0.00056438,120]
[358598678,1745298672441,-500.0,0.00056438,120]
[358598679,1745298672451,-577.57,0.00056438,120]
[358598680,1745298672460,-500.0,0.00056438,120]
[358598681,1745298672470,-500.0,0.00056438,120]
[358598682,1745298672479,-500.0,0.00056438,120]
[358598683,1745298672488,-500.0,0.00056438,120]
[358598684,1745298672498,-20766.77,0.00056438,120]
[358598685,1745298672507,-500.0,0.00056438,120]
[358598686,1745298672517,-500.0,0.00056438,120]
[358598687,1745298672526,-630.66,0.00056438,120]
[358598688,1745298672535,-500.0,0.00056438,120]
[358598689,1745298672545,-500.0,0.00056438,120]
[358598690,1745298672555,-500.0,0.00056438,120]
[358598691,1745298672564,-500.0,0.00056438,120]
[358598692,1745298672574,-500.0,0.00056438,120]
[358598693,1745298672583,-557.45,0.00056438,120]
[358598694,1745298672593,-500.0,0.00056438,120]
[358598695,1745298672602,-500.0,0.00056438,120]
[358598696,1745298672612,-166.21119759,0.00056438,120]
[358598697,1745298672621,-500.0,0.00056438,120]
[358598698,1745298672631,-597.45,0.00056438,120]
[358598699,1745298672641,-526.60350058,0.00056438,120]
[358598700,1745298672651,-500.0,0.00056438,2]
[358598701,1745298672660,-1266.32,0.00056438,120]
[358598702,1745298672669,-500.0,0.00056438,120]
[358598703,1745298672679,-515.88,0.00056438,120]
[358598704,1745298672688,-500.0,0.00056438,120]
[358598705,1745298672698,-500.0,0.00056438,120]
[358598706,1745298672708,-386.98761293,0.00056438,120]
[358598707,1745298672718,-500.0,0.00056438,120]
[358598708,1745298672728,-515.48200077,0.00056438,120]
[358598709,1745298672737,-1297.76,0.00056438,120]
[358598710,1745298672747,-500.0,0.00056438,120]
[358598711,1745298672757,-500.0,0.00056438,120]
[358598712,1745298672766,-500.0,0.00056438,120]
[358598713,1745298672775,-631.49,0.00056438,120]
[358598714,1745298672785,-500.0,0.00056438,120]
[358598715,1745298672794,-500.0,0.00056438,120]
[358598716,1745298672803,-500.0,0.00056438,120]
[358598717,1745298672813,-500.0,0.00056438,120]
[358598718,1745298672823,-800.0,0.00056464,120]
[358598719,1745298672832,-2700.0,0.0005647,120]
[358598720,1745298672842,-152.0,0.00056502,8]
[358598721,1745298672851,-800.0,0.00056521,120]
[358598722,1745298672861,-1100.0,0.00056547,120]
[358598723,1745298672870,-800.0,0.00056549,120]
[358598724,1745298672880,-150.0,0.00056568,14]
[358598725,1745298672890,-206.0,0.0005659,30]
[358598726,1745298672899,-211.0,0.0005659,30]
[358598727,1745298672908,-209.0,0.0005659,30]
[358598728,1745298672918,-213.0,0.0005659,30]
[358598729,1745298672927,-211.0,0.0005659,30]
[358598730,1745298672936,-209.0,0.0005659,30]
[358598731,1745298672946,-222.0,0.0005659,30]
[358598732,1745298672956,-150.0,0.0005662,120]
[358598733,1745298672966,-1947.58,0.00056724,2]
[358598734,1745298672975,-150.0,0.00056731,120]
[358598735,1745298672985,-809.83739468,0.00056746,120]
[358598736,1745298672994,-1100.0,0.0005684,120]
[358598737,1745298673004,-169.66159445,0.00056886,28]
[358598738,1745298673013,-200.0,0.000569,108]
[358598739,1745298673023,-287.14118354,0.00056903,120]
[358598740,1745298673032,-798.31587692,0.0005693,30]
[358598741,1745298673041,-800.0,0.00056964,120]
[358598742,1745298673051,-800.0,0.0005698,120]
[358598743,1745298673061,-150.0,0.00056985,120]
[358598744,1745298673075,-1123.355858,0.00056986,120]
[358598745,1745298673085,-486.829956,0.00056986,120]
[358598746,1745298673094,-167.989833,0.00056986,120]
[358598747,1745298673103,-151.0,0.00056986,120]
[358598748,1745298673114,-151.0,0.00056986,120]
[358598749,1745298673123,-151.0,0.00056986,120]
[358598750,1745298673134,-500.0,0.00056986,120]
[358598751,1745298673144,-500.0,0.00056986,120]
[358598752,1745298673155,-290.30279983,0.00056986,120]
[358598753,1745298673165,-151.0,0.00056986,120]
[358598754,1745298673175,-500.0,0.00056986,60]
[358598755,1745298673184,-381.52142845,0.00056986,120]
[358598756,1745298673193,-500.0,0.00056986,120]
[358598757,1745298673202,-600.0,0.00056986,120]
[358598758,1745298673212,-500.0,0.00056986,120]
[358598759,1745298673221,-500.0,0.00056986,120]
[358598760,1745298673230,-151.0,0.00056986,120]
[358598761,1745298673240,-500.0,0.00056986,120]
[358598762,1745298673249,-1000.0,0.00056986,120]
[358598763,1745298673259,-151.0,0.00056986,120]
[358598764,1745298673268,-500.0,0.00056986,120]
[358598765,1745298673277,-500.0,0.00056986,120]
[358598766,1745298673286,-180.90111,0.00056986,120]
[358598767,1745298673295,-500.0,0.00056986,120]
[358598768,1745298673304,-180.90111,0.00056986,120]
[358598769,1745298673314,-168.73654,0.00056986,120]
[358598770,1745298673323,-500.0,0.00056986,120]
[358598771,1745298673332,-151.0,0.00056986,120]
[358598772,1745298673342,-500.0,0.00056986,120]
[358598773,1745298673351,-367.726189,0.00056986,120]
[358598774,1745298673360,-500.0,0.00056986,120]
[358598775,1745298673369,-740.11,0.00056986,120]
[358598776,1745298673378,-500.0,0.00056986,120]
[358598777,1745298673387,-500.0,0.00056986,120]
[358598778,1745298673395,-252.805805,0.00056986,120]
[358598779,1745298673404,-500.0,0.00056986,120]
[358598780,1745298673413,-500.0,0.00056986,120]
[358598781,1745298673422,-252.805805,0.00056986,120]
[358598782,1745298673431,-500.0,0.00056986,120]
[358598783,1745298673440,-500.0,0.00056986,120]
[358598784,1745298673450,-600.83163733,0.00056986,120]
[358598785,1745298673459,-151.0,0.00056986,120]
[358598786,1745298673468,-500.0,0.00056986,120]
[358598787,1745298673477,-500.0,0.00056986,120]
[358598788,1745298673486,-500.0,0.00056986,120]
[358598789,1745298673495,-500.0,0.00056986,120]
[358598790,1745298673504,-500.0,0.00056986,120]
[358598791,1745298673514,-151.0,0.00056986,120]
[358598792,1745298673524,-295.23421369,0.00056986,120]
[358598793,1745298673533,-673.62,0.00056986,120]
[358598794,1745298673542,-574.32,0.00056986,120]
[358598795,1745298673551,-154.864559,0.00056986,120]
[358598796,1745298673561,-500.0,0.00056986,120]
[358598797,1745298673570,-500.0,0.00056986,120]
[358598798,1745298673579,-500.0,0.00056986,120]
[358598799,1745298673588,-500.0,0.00056986,120]
[358598800,1745298673599,-616.34763338,0.00056986,120]
[358598801,1745298673608,-500.0,0.00056986,120]
[358598802,1745298673618,-500.0,0.00056986,120]
[358598803,1745298673627,-151.0,0.00056986,120]
[358598804,1745298673636,-500.0,0.00056986,120]
[358598805,1745298673646,-500.0,0.00056986,120]
[358598806,1745298673655,-500.0,0.00056986,120]
[358598807,1745298673664,-500.0,0.00056986,120]
[358598808,1745298673673,-176.954828,0.00056986,120]
[358598809,1745298673683,-500.0,0.00056986,120]
[358598810,1745298673692,-176.954828,0.00056986,120]
[358598811,1745298673702,-500.0,0.00056986,120]
[358598812,1745298673711,-296.72019595,0.00056986,30]
[358598813,1745298673721,-500.0,0.00056986,120]
[358598814,1745298673732,-500.0,0.00056986,120]
[358598815,1745298673742,-224.993622,0.00056986,120]
[358598816,1745298673751,-500.0,0.00056986,120]
[358598817,1745298673763,-500.0,0.00056986,120]
[358598818,1745298673773,-500.0,0.00056986,120]
[358598819,1745298673782,-224.993622,0.00056986,120]
[358598820,1745298673791,-500.0,0.00056986,120]
[358598821,1745298673801,-1004.96,0.00056986,120]
[358598822,1745298673810,-500.0,0.00056986,120]
[358598823,1745298673819,-500.0,0.00056986,120]
[358598824,1745298673829,-500.0,0.00056986,120]
[358598825,1745298673838,-500.0,0.00056986,120]
[358598826,1745298673847,-151.0,0.00056986,120]
[358598827,1745298673856,-500.0,0.00056986,120]
[358598828,1745298673865,-500.0,0.00056986,120]
[358598829,1745298673874,-690.67,0.00056986,120]
[358598830,1745298673884,-500.0,0.00056986,120]
[358598831,1745298673893,-500.0,0.00056986,120]
[358598832,1745298673902,-151.0,0.00056986,120]
[358598833,1745298673912,-500.0,0.00056986,120]
[358598834,1745298673921,-560.08,0.00056986,120]
[358598835,1745298673930,-226.864648,0.00056986,120]
[358598836,1745298673939,-500.0,0.00056986,120]
[358598837,1745298673949,-500.0,0.00056986,120]
[358598838,1745298673958,-500.0,0.00056986,120]
[358598839,1745298673968,-500.0,0.00056986,120]
[358598840,1745298673978,-151.0,0.00056986,120]
[358598841,1745298673988,-500.0,0.00056986,120]
[358598842,1745298673998,-500.0,0.00056986,120]
[358598843,1745298674008,-500.0,0.00056986,120]
[358598844,1745298674148,-151.0,0.00056986,120]
[358598845,1745298674160,-151.0,0.00056986,120]
[358598846,1745298674170,-500.0,0.00056986,120]
[358598847,1745298674180,-519.20338841,0.00056986,120]
[358598848,1745298674190,-500.0,0.00056986,120]
[358598849,1745298674199,-500.0,0.00056986,120]
[358598850,1745298674209,-500.0,0.00056986,120]
[358598851,1745298674218,-500.0,0.00056986,120]
[358598852,1745298674227,-500.0,0.00056986,120]
[358598853,1745298674237,-500.0,0.00056986,120]
[358598854,1745298674246,-500.0,0.00056986,120]
[358598855,1745298674255,-500.0,0.00056986,120]
[358598856,1745298674264,-500.0,0.00056986,120]
[358598857,1745298674273,-509.45,0.00056986,120]
[358598858,1745298674282,-157.486162,0.00056986,120]
[358598859,1745298674292,-350.23658244,0.00056986,120]
[358598860,1745298674300,-500.0,0.00056986,120]
[358598861,1745298674309,-500.0,0.00056986,120]
[358598862,1745298674318,-500.0,0.00056986,120]
[358598863,1745298674328,-151.0,0.00056986,120]
[358598864,1745298674337,-500.0,0.00056986,120]
[358598865,1745298674346,-515.19,0.00056986,120]
[358598866,1745298674356,-500.0,0.00056986,120]
[358598867,1745298674365,-500.0,0.00056986,120]
[358598868,1745298674375,-500.0,0.00056986,120]
[358598869,1745298674384,-500.0,0.00056986,120]
[358598870,1745298674393,-340.37315895,0.00056986,120]
[358598871,1745298674402,-500.0,0.00056986,120]
[358598872,1745298674412,-193.016248,0.00056986,120]
[358598873,1745298674421,-500.0,0.00056986,120]
[358598874,1745298674430,-193.016248,0.00056986,120]
[358598875,1745298674440,-3297.484607,0.00056986,120]
[358598876,1745298674449,-3297.484607,0.00056986,120]
[358598877,1745298674459,-500.0,0.00056986,120]
[358598878,1745298674468,-151.0,0.00056986,120]
[358598879,1745298674478,-500.0,0.00056986,120]
[358598880,1745298674486,-500.0,0.00056986,120]
[358598881,1745298674496,-581.19712738,0.00056986,120]
[358598882,1745298674506,-151.0,0.00056986,120]
[358598883,1745298674516,-500.0,0.00056986,120]
[358598884,1745298674526,-500.0,0.00056986,120]
[358598885,1745298674535,-500.0,0.00056986,120]
[358598886,1745298674545,-379.25721339,0.00056986,120]
[358598887,1745298674555,-164.292431,0.00056986,120]
[358598888,1745298674564,-151.0,0.00056986,120]